[Event "Early-Titled-Tuesday-Blitz-January-16-2024"]
[Site "Chess.com"]
[Date "2024.01.16"]
[Round "7"]
[White "igorkovalenko"]
[Black "CSB7"]
[Result "1/2-1/2"]
[WhiteElo "2985"]
[BlackElo "2703"]
[TimeControl "180+1"]
[EndTime "9:24:57 PST"]
[Termination "Game drawn by repetition"]

1. d4 {[%clk 0:02:43.6]} 1... Nf6 {[%clk 0:03:00.9]} 2. Nf3 {[%clk 0:02:41.9]}
2... e6 {[%clk 0:02:56.9]} 3. Bg5 {[%clk 0:02:41.7]} 3... h6 {[%clk 0:02:53.9]}
4. Bxf6 {[%clk 0:02:41.6]} 4... Qxf6 {[%clk 0:02:53.3]} 5. e4 {[%clk 0:02:42.2]}
5... d6 {[%clk 0:02:52.2]} 6. c3 {[%clk 0:02:39.5]} 6... Nd7 {[%clk 0:02:47.1]}
7. Na3 {[%clk 0:02:39.1]} 7... g6 {[%clk 0:02:45.9]} 8. Bd3 {[%clk 0:02:35.1]}
8... Bg7 {[%clk 0:02:45.5]} 9. O-O {[%clk 0:02:35.6]} 9... O-O {[%clk 0:02:45]}
10. Qd2 {[%clk 0:02:36.2]} 10... Qe7 {[%clk 0:02:37.9]} 11. Rfe1 {[%clk
0:02:34.2]} 11... e5 {[%clk 0:02:34.8]} 12. h3 {[%clk 0:02:34]} 12... a6 {[%clk
0:02:27.9]} 13. Nc2 {[%clk 0:02:32.6]} 13... Nf6 {[%clk 0:02:15.5]} 14. a4
{[%clk 0:02:29.9]} 14... Nh5 {[%clk 0:02:14.2]} 15. Bf1 {[%clk 0:02:26.1]} 15...
Nf4 {[%clk 0:02:08.1]} 16. Kh2 {[%clk 0:02:17.1]} 16... h5 {[%clk 0:02:03.9]}
17. g3 {[%clk 0:02:16.8]} 17... Ne6 {[%clk 0:02:02.8]} 18. Bg2 {[%clk
0:02:09.2]} 18... b6 {[%clk 0:01:28.4]} 19. b4 {[%clk 0:01:42.1]} 19... Rd8
{[%clk 0:01:20.9]} 20. Rad1 {[%clk 0:01:40.1]} 20... Bd7 {[%clk 0:01:18.6]} 21.
Ra1 {[%clk 0:01:38.9]} 21... Qe8 {[%clk 0:01:18]} 22. a5 {[%clk 0:01:38.6]}
22... b5 {[%clk 0:01:08.9]} 23. Ne3 {[%clk 0:01:38.5]} 23... exd4 {[%clk
0:01:02.6]} 24. cxd4 {[%clk 0:01:38.6]} 24... c5 {[%clk 0:01:03.3]} 25. Nc2
{[%clk 0:01:19.6]} 25... cxd4 {[%clk 0:00:55.9]} 26. Ncxd4 {[%clk 0:01:18.6]}
26... Rac8 {[%clk 0:00:53.9]} 27. Rad1 {[%clk 0:01:16.2]} 27... Nxd4 {[%clk
0:00:46.9]} 28. Nxd4 {[%clk 0:01:13.7]} 28... Rc4 {[%clk 0:00:46.2]} 29. Ne2
{[%clk 0:01:13.6]} 29... Bc6 {[%clk 0:00:37.8]} 30. Rc1 {[%clk 0:01:08]} 30...
Qe5 {[%clk 0:00:35.4]} 31. Rxc4 {[%clk 0:00:57.9]} 31... bxc4 {[%clk 0:00:36.3]}
32. Rc1 {[%clk 0:00:57.9]} 32... Bxe4 {[%clk 0:00:11.2]} 33. Rxc4 {[%clk
0:00:55.6]} 33... Bxg2 {[%clk 0:00:11.2]} 34. Kxg2 {[%clk 0:00:56.5]} 34... d5
{[%clk 0:00:09.2]} 35. Rc5 {[%clk 0:00:43.2]} 35... Qe4+ {[%clk 0:00:06.8]} 36.
f3 {[%clk 0:00:43.7]} 36... Qb1 {[%clk 0:00:04.5]} 37. Rxd5 {[%clk 0:00:40.2]}
37... Rxd5 {[%clk 0:00:03.4]} 38. Qxd5 {[%clk 0:00:41.1]} 38... Qxb4 {[%clk
0:00:03.5]} 39. Qa8+ {[%clk 0:00:41.3]} 39... Bf8 {[%clk 0:00:03.6]} 40. Qxa6
{[%clk 0:00:42.2]} 40... Bc5 {[%clk 0:00:03.4]} 41. h4 {[%clk 0:00:30.4]} 41...
Kg7 {[%clk 0:00:02.9]} 42. Nf4 {[%clk 0:00:19.9]} 42... Qd2+ {[%clk 0:00:02.3]}
43. Qe2 {[%clk 0:00:15.3]} 43... Qxa5 {[%clk 0:00:02.6]} 44. Nd3 {[%clk
0:00:14.1]} 44... Bd6 {[%clk 0:00:02]} 45. Qb2+ {[%clk 0:00:13.4]} 45... Kg8
{[%clk 0:00:01.7]} 46. Nf2 {[%clk 0:00:13.2]} 46... Bf8 {[%clk 0:00:02.2]} 47.
Ne4 {[%clk 0:00:13.4]} 47... Bg7 {[%clk 0:00:02.5]} 48. Qe2 {[%clk 0:00:13.9]}
48... Qa8 {[%clk 0:00:02.1]} 49. Ng5 {[%clk 0:00:14]} 49... Qf8 {[%clk 0:00:03]}
50. g4 {[%clk 0:00:13.7]} 50... hxg4 {[%clk 0:00:03]} 51. fxg4 {[%clk
0:00:14.6]} 51... Qa8+ {[%clk 0:00:03.2]} 52. Nf3 {[%clk 0:00:15.1]} 52... Qf8
{[%clk 0:00:03.6]} 53. Qe4 {[%clk 0:00:15.2]} 53... Bf6 {[%clk 0:00:03.4]} 54.
h5 {[%clk 0:00:14.8]} 54... gxh5 {[%clk 0:00:03.4]} 55. gxh5 {[%clk 0:00:15.7]}
55... Qe7 {[%clk 0:00:03.8]} 56. Qf5 {[%clk 0:00:15.8]} 56... Qe6 {[%clk
0:00:03.7]} 57. Qf4 {[%clk 0:00:16.4]} 57... Kh8 {[%clk 0:00:02.9]} 58. Kg3
{[%clk 0:00:16.8]} 58... Kg8 {[%clk 0:00:03.4]} 59. Qb8+ {[%clk 0:00:16.2]}
59... Kh7 {[%clk 0:00:03.2]} 60. Qf4 {[%clk 0:00:17.1]} 60... Kg8 {[%clk
0:00:03.4]} 61. Kg2 {[%clk 0:00:17.5]} 61... Kh8 {[%clk 0:00:03.7]} 62. Nd2
{[%clk 0:00:16.9]} 62... Kg8 {[%clk 0:00:02.4]} 63. Ne4 {[%clk 0:00:17.1]} 63...
Bg7 {[%clk 0:00:02.9]} 64. Ng5 {[%clk 0:00:16.6]} 64... Qe7 {[%clk 0:00:03]} 65.
Qb8+ {[%clk 0:00:15.6]} 65... Bf8 {[%clk 0:00:03.3]} 66. Qg3 {[%clk 0:00:16.1]}
66... Bg7 {[%clk 0:00:03.3]} 67. Qf4 {[%clk 0:00:16.6]} 67... Bh6 {[%clk
0:00:02.7]} 68. Qb8+ {[%clk 0:00:16.5]} 68... Kg7 {[%clk 0:00:02.9]} 69. Nf3
{[%clk 0:00:15.8]} 69... Qf6 {[%clk 0:00:03.3]} 70. Qg3+ {[%clk 0:00:15.3]}
70... Kf8 {[%clk 0:00:03.1]} 71. Qc7 {[%clk 0:00:14.7]} 71... Kg7 {[%clk
0:00:02.6]} 72. Qd7 {[%clk 0:00:14.8]} 72... Bf4 {[%clk 0:00:02.4]} 73. Qg4+
{[%clk 0:00:14.5]} 73... Kh8 {[%clk 0:00:02.1]} 74. Kh3 {[%clk 0:00:15.4]} 74...
Bh6 {[%clk 0:00:02.4]} 75. Nh4 {[%clk 0:00:14]} 75... Qe6 {[%clk 0:00:02.4]} 76.
Nf5 {[%clk 0:00:13.9]} 76... Bf8 {[%clk 0:00:02.7]} 77. Qg5 {[%clk 0:00:13.6]}
77... Qb3+ {[%clk 0:00:02]} 78. Kg4 {[%clk 0:00:13.6]} 78... Qe6 {[%clk
0:00:02.6]} 79. Qd8 {[%clk 0:00:13.2]} 79... Kg8 {[%clk 0:00:02.4]} 80. h6
{[%clk 0:00:13.8]} 80... Qe4+ {[%clk 0:00:02.9]} 81. Kg5 {[%clk 0:00:13.7]}
81... Qg2+ {[%clk 0:00:03.4]} 82. Kh4 {[%clk 0:00:14.2]} 82... Qh2+ {[%clk
0:00:03.7]} 83. Kg4 {[%clk 0:00:14.8]} 83... Qe2+ {[%clk 0:00:04]} 84. Kg3
{[%clk 0:00:14.6]} 84... Qe1+ {[%clk 0:00:04.2]} 85. Kf3 {[%clk 0:00:13.5]}
85... Qf1+ {[%clk 0:00:04.4]} 86. Kg4 {[%clk 0:00:13.7]} 86... Qg1+ {[%clk
0:00:03]} 87. Ng3 {[%clk 0:00:14]} 87... Qh2 {[%clk 0:00:03.6]} 88. Qg5+ {[%clk
0:00:13.6]} 88... Kh8 {[%clk 0:00:03.9]} 89. Qf6+ {[%clk 0:00:13.9]} 89... Kg8
{[%clk 0:00:04.3]} 90. Qg5+ {[%clk 0:00:14.5]} 90... Kh8 {[%clk 0:00:04.3]} 91.
Qf6+ {[%clk 0:00:15.2]} 91... Kg8 {[%clk 0:00:04.8]} 92. Nf5 {[%clk 0:00:15.8]}
92... Qg2+ {[%clk 0:00:03.8]} 93. Kh4 {[%clk 0:00:16.2]} 93... Qh2+ {[%clk
0:00:04.1]} 94. Kg4 {[%clk 0:00:16.8]} 94... Qg2+ {[%clk 0:00:04.6]} 95. Kf4
{[%clk 0:00:17.4]} 95... Qf2+ {[%clk 0:00:04.5]} 96. Ke4 {[%clk 0:00:17.7]}
96... Qc2+ {[%clk 0:00:04.3]} 97. Kf3 {[%clk 0:00:17.7]} 97... Qd1+ {[%clk
0:00:04.1]} 98. Kg2 {[%clk 0:00:18]} 98... Qe2+ {[%clk 0:00:04.2]} 99. Kh3
{[%clk 0:00:18.5]} 99... Qf3+ {[%clk 0:00:04.6]} 100. Kh4 {[%clk 0:00:19]}
100... Qh1+ {[%clk 0:00:04.6]} 101. Kg4 {[%clk 0:00:19.6]} 101... Qg2+ {[%clk
0:00:04.9]} 1/2-1/2

[Event "Early-Titled-Tuesday-Blitz-January-16-2024"]
[Site "Chess.com"]
[Date "2024.01.16"]
[Round "8"]
[White "Adar_07"]
[Black "Balla_Tamas"]
[Result "1-0"]
[WhiteElo "2662"]
[BlackElo "2465"]
[TimeControl "180+1"]
[EndTime "9:27:10 PST"]
[Termination "Adar_07 won by resignation"]

1. Nf3 {[%clk 0:03:00.9]} 1... c5 {[%clk 0:03:00]} 2. c3 {[%clk 0:02:59.8]} 2...
Nc6 {[%clk 0:02:59.4]} 3. d4 {[%clk 0:03:00.7]} 3... cxd4 {[%clk 0:02:59.8]} 4.
cxd4 {[%clk 0:03:00.8]} 4... d5 {[%clk 0:03:00.2]} 5. Nc3 {[%clk 0:03:00.5]}
5... Nf6 {[%clk 0:02:56.9]} 6. Bf4 {[%clk 0:02:59.6]} 6... Bf5 {[%clk
0:02:49.3]} 7. e3 {[%clk 0:02:53.1]} 7... e6 {[%clk 0:02:48.8]} 8. Qb3 {[%clk
0:02:53]} 8... b6 {[%clk 0:02:34.6]} 9. Bb5 {[%clk 0:02:51.8]} 9... Rc8 {[%clk
0:02:34.6]} 10. Qa4 {[%clk 0:02:51.7]} 10... Qd7 {[%clk 0:01:49.5]} 11. Ne5
{[%clk 0:02:50]} 11... Nxe5 {[%clk 0:01:49.8]} 12. dxe5 {[%clk 0:02:50.7]} 1-0

[Event "Early-Titled-Tuesday-Blitz-January-16-2024"]
[Site "Chess.com"]
[Date "2024.01.16"]
[Round "8"]
[White "Masterisback04"]
[Black "Kostukov_Alex"]
[Result "0-1"]
[WhiteElo "1790"]
[BlackElo "2310"]
[TimeControl "180+1"]
[EndTime "9:27:29 PST"]
[Termination "Kostukov_Alex won by resignation"]

1. e4 {[%clk 0:02:52.4]} 1... c5 {[%clk 0:02:59.7]} 2. Nf3 {[%clk 0:02:51.9]}
2... g6 {[%clk 0:02:59.7]} 3. c4 {[%clk 0:02:50.8]} 3... Bg7 {[%clk 0:02:57.4]}
4. d4 {[%clk 0:02:49.5]} 4... cxd4 {[%clk 0:02:57.5]} 5. Nxd4 {[%clk 0:02:50.4]}
5... Nc6 {[%clk 0:02:57.8]} 6. Be3 {[%clk 0:02:50.3]} 6... Nf6 {[%clk
0:02:57.5]} 7. Nc3 {[%clk 0:02:49.8]} 7... O-O {[%clk 0:02:57.7]} 8. Be2 {[%clk
0:02:47.9]} 8... Nxd4 {[%clk 0:02:57.5]} 9. Bxd4 {[%clk 0:02:47.7]} 9... Qa5
{[%clk 0:02:58.4]} 10. O-O {[%clk 0:02:42.9]} 10... d6 {[%clk 0:02:58.5]} 11.
Qd2 {[%clk 0:02:32.8]} 11... Nxe4 {[%clk 0:02:57.3]} 12. Qe3 {[%clk 0:01:51.2]}
12... Nxc3 {[%clk 0:02:54.9]} 13. bxc3 {[%clk 0:01:50.6]} 13... e5 {[%clk
0:02:53.3]} 0-1

[Event "Early-Titled-Tuesday-Blitz-January-16-2024"]
[Site "Chess.com"]
[Date "2024.01.16"]
[Round "8"]
[White "DAVIDHDZSTS"]
[Black "Ducke13"]
[Result "0-1"]
[WhiteElo "1994"]
[BlackElo "2331"]
[TimeControl "180+1"]
[EndTime "9:28:43 PST"]
[Termination "Ducke13 won by resignation"]

1. d4 {[%clk 0:02:58.8]} 1... Nf6 {[%clk 0:03:00.1]} 2. Nc3 {[%clk 0:02:58.4]}
2... d5 {[%clk 0:02:59.4]} 3. Bf4 {[%clk 0:02:58.8]} 3... g6 {[%clk 0:02:58.1]}
4. e3 {[%clk 0:02:57.9]} 4... Bg7 {[%clk 0:02:56.9]} 5. h4 {[%clk 0:02:58.3]}
5... h5 {[%clk 0:02:56.3]} 6. Nf3 {[%clk 0:02:55.1]} 6... O-O {[%clk 0:02:56.4]}
7. Qd2 {[%clk 0:02:54.6]} 7... c5 {[%clk 0:02:55.7]} 8. dxc5 {[%clk 0:02:53.8]}
8... Qa5 {[%clk 0:02:51.5]} 9. Be5 {[%clk 0:02:30.3]} 9... Nbd7 {[%clk
0:02:36.7]} 10. Bd4 {[%clk 0:02:26.1]} 10... Nxc5 {[%clk 0:02:33.5]} 11. Bxc5
{[%clk 0:02:18.2]} 11... Qxc5 {[%clk 0:02:32.9]} 12. Bd3 {[%clk 0:02:13]} 12...
Ne4 {[%clk 0:01:52.5]} 13. Nxe4 {[%clk 0:01:42.1]} 13... dxe4 {[%clk 0:01:49.9]}
14. Bxe4 {[%clk 0:01:34.6]} 14... Bxb2 {[%clk 0:01:50.2]} 15. Rb1 {[%clk
0:01:30.3]} 15... Bc3 {[%clk 0:01:50]} 0-1

[Event "Early-Titled-Tuesday-Blitz-January-16-2024"]
[Site "Chess.com"]
[Date "2024.01.16"]
[Round "8"]
[White "Bauman_Guy"]
[Black "IM_ArthurDW08"]
[Result "1-0"]
[WhiteElo "2923"]
[BlackElo "2782"]
[TimeControl "180+1"]
[EndTime "9:29:02 PST"]
[Termination "Bauman_Guy won by resignation"]

1. e4 {[%clk 0:03:00.9]} 1... c5 {[%clk 0:02:59.2]} 2. Nf3 {[%clk 0:03:01.2]}
2... e6 {[%clk 0:02:59.9]} 3. d4 {[%clk 0:03:01.3]} 3... cxd4 {[%clk 0:03:00.8]}
4. Nxd4 {[%clk 0:03:02.2]} 4... a6 {[%clk 0:03:01.2]} 5. Bd3 {[%clk 0:03:01.8]}
5... Bc5 {[%clk 0:02:59.7]} 6. Nb3 {[%clk 0:03:01.5]} 6... Ba7 {[%clk
0:02:58.9]} 7. O-O {[%clk 0:03:02]} 7... Nc6 {[%clk 0:02:57.5]} 8. Qg4 {[%clk
0:03:00.2]} 8... g6 {[%clk 0:02:35.7]} 9. Qe2 {[%clk 0:02:58.7]} 9... Nf6 {[%clk
0:02:34.3]} 10. e5 {[%clk 0:02:56.5]} 10... Nd5 {[%clk 0:02:25.7]} 11. a3 {[%clk
0:02:53.7]} 11... Bb8 {[%clk 0:02:18]} 12. c4 {[%clk 0:02:49.9]} 12... Nde7
{[%clk 0:02:17.6]} 13. Bh6 {[%clk 0:02:39.6]} 13... Bxe5 {[%clk 0:02:16.3]} 14.
Nc3 {[%clk 0:02:39.9]} 14... Qc7 {[%clk 0:01:57.5]} 15. f4 {[%clk 0:02:39.4]}
15... Bxc3 {[%clk 0:01:56]} 16. bxc3 {[%clk 0:02:39]} 16... b6 {[%clk
0:01:50.3]} 17. Nd4 {[%clk 0:02:27.3]} 17... Bb7 {[%clk 0:01:44.9]} 18. Rab1
{[%clk 0:02:26.3]} 18... O-O-O {[%clk 0:01:44.4]} 19. Bg7 {[%clk 0:02:22.3]}
19... Rhg8 {[%clk 0:01:40]} 20. Bf6 {[%clk 0:02:22.7]} 20... Rde8 {[%clk
0:01:36.1]} 21. Qf2 {[%clk 0:02:14.3]} 21... Nf5 {[%clk 0:01:22.3]} 22. Nxc6
{[%clk 0:02:08.7]} 22... dxc6 {[%clk 0:01:13.8]} 23. Be5 {[%clk 0:02:04.5]} 1-0

[Event "Early-Titled-Tuesday-Blitz-January-16-2024"]
[Site "Chess.com"]
[Date "2024.01.16"]
[Round "8"]
[White "slorovel"]
[Black "EsmeraldasAnderson03"]
[Result "1-0"]
[WhiteElo "2566"]
[BlackElo "2398"]
[TimeControl "180+1"]
[EndTime "9:29:02 PST"]
[Termination "slorovel won by resignation"]

1. e4 {[%clk 0:03:00.9]} 1... c5 {[%clk 0:02:59.8]} 2. Nf3 {[%clk 0:03:00.8]}
2... d6 {[%clk 0:03:00.4]} 3. d4 {[%clk 0:03:00.1]} 3... cxd4 {[%clk 0:03:01.3]}
4. Nxd4 {[%clk 0:03:00.7]} 4... Nf6 {[%clk 0:03:02.2]} 5. f3 {[%clk 0:03:01]}
5... a6 {[%clk 0:03:03.1]} 6. c4 {[%clk 0:03:01.2]} 6... e5 {[%clk 0:03:04]} 7.
Nb3 {[%clk 0:03:01.1]} 7... Be7 {[%clk 0:03:04.7]} 8. Nc3 {[%clk 0:03:01.3]}
8... O-O {[%clk 0:03:05.5]} 9. Be3 {[%clk 0:03:01.7]} 9... Be6 {[%clk 0:03:06]}
10. Rc1 {[%clk 0:03:00.8]} 10... Nh5 {[%clk 0:03:05.6]} 11. g3 {[%clk
0:02:56.5]} 11... f5 {[%clk 0:03:04.8]} 12. exf5 {[%clk 0:02:55.1]} 12... Bxf5
{[%clk 0:03:05.2]} 13. g4 {[%clk 0:02:55.5]} 13... Bh4+ {[%clk 0:03:04.8]} 14.
Kd2 {[%clk 0:02:52.8]} 14... Bg5 {[%clk 0:02:43.9]} 15. Qe1 {[%clk 0:02:52.7]}
15... Bh4 {[%clk 0:01:21.1]} 16. Qd1 {[%clk 0:02:44]} 16... Bg5 {[%clk
0:01:20.6]} 17. Qe1 {[%clk 0:02:27.4]} 17... Bh4 {[%clk 0:01:20.5]} 18. Qe2
{[%clk 0:02:27.8]} 1-0

[Event "Early-Titled-Tuesday-Blitz-January-16-2024"]
[Site "Chess.com"]
[Date "2024.01.16"]
[Round "8"]
[White "01Roman"]
[Black "yaguigor"]
[Result "1-0"]
[WhiteElo "2468"]
[BlackElo "2624"]
[TimeControl "180+1"]
[EndTime "9:29:27 PST"]
[Termination "01Roman won by resignation"]

1. Nf3 {[%clk 0:03:00.9]} 1... d5 {[%clk 0:02:59.2]} 2. d4 {[%clk 0:02:59.4]}
2... Nf6 {[%clk 0:02:58.5]} 3. c4 {[%clk 0:02:57.9]} 3... c6 {[%clk 0:02:58]} 4.
Qc2 {[%clk 0:02:48.5]} 4... dxc4 {[%clk 0:02:57]} 5. e4 {[%clk 0:02:26.2]} 5...
b5 {[%clk 0:02:55.6]} 6. b3 {[%clk 0:02:08.7]} 6... cxb3 {[%clk 0:02:54.9]} 7.
axb3 {[%clk 0:02:09.6]} 7... e6 {[%clk 0:02:54.4]} 8. Bd2 {[%clk 0:02:09.3]}
8... a5 {[%clk 0:02:54.9]} 9. Bd3 {[%clk 0:02:08.9]} 9... Bb7 {[%clk 0:02:53.5]}
10. O-O {[%clk 0:02:09.3]} 10... Be7 {[%clk 0:02:52.6]} 11. Rd1 {[%clk
0:02:08.3]} 11... h6 {[%clk 0:02:50.4]} 12. Nc3 {[%clk 0:02:03]} 12... Na6
{[%clk 0:02:49.2]} 13. d5 {[%clk 0:02:01.8]} 13... Nb4 {[%clk 0:02:48.1]} 14.
Qb1 {[%clk 0:02:01.2]} 14... exd5 {[%clk 0:02:46.8]} 15. e5 {[%clk 0:02:00.1]}
15... Nd7 {[%clk 0:02:28]} 16. e6 {[%clk 0:01:59.4]} 16... fxe6 {[%clk
0:02:14.3]} 17. Bg6+ {[%clk 0:01:58.6]} 17... Kf8 {[%clk 0:02:15]} 18. Nd4
{[%clk 0:01:59.2]} 18... Nc5 {[%clk 0:02:11.8]} 19. Ncxb5 {[%clk 0:01:50.8]}
19... cxb5 {[%clk 0:02:06.1]} 20. Rxa5 {[%clk 0:01:42.4]} 20... Qxa5 {[%clk
0:01:50.5]} 21. Nxe6+ {[%clk 0:01:41.7]} 21... Nxe6 {[%clk 0:01:49.7]} 22. Qf5+
{[%clk 0:01:42.3]} 22... Bf6 {[%clk 0:01:43.8]} 23. Qxe6 {[%clk 0:01:43.2]} 1-0

[Event "Early-Titled-Tuesday-Blitz-January-16-2024"]
[Site "Chess.com"]
[Date "2024.01.16"]
[Round "8"]
[White "ninguno46"]
[Black "KanalSzachowy"]
[Result "1-0"]
[WhiteElo "2544"]
[BlackElo "2350"]
[TimeControl "180+1"]
[EndTime "9:29:29 PST"]
[Termination "ninguno46 won by resignation"]

1. d4 {[%clk 0:03:00.9]} 1... Nf6 {[%clk 0:02:10.7]} 2. c4 {[%clk 0:02:59]} 2...
e6 {[%clk 0:02:10]} 3. Nc3 {[%clk 0:02:57.9]} 3... Bb4 {[%clk 0:02:08.9]} 4. e3
{[%clk 0:02:58.5]} 4... O-O {[%clk 0:02:07.2]} 5. Bd3 {[%clk 0:02:57.5]} 5... d5
{[%clk 0:02:06.9]} 6. a3 {[%clk 0:02:56.6]} 6... Bxc3+ {[%clk 0:02:04.9]} 7.
bxc3 {[%clk 0:02:57.5]} 7... dxc4 {[%clk 0:02:04.9]} 8. Bxc4 {[%clk 0:02:57.3]}
8... c5 {[%clk 0:02:05.8]} 9. Ne2 {[%clk 0:02:56.9]} 9... Nc6 {[%clk 0:02:04]}
10. O-O {[%clk 0:02:56]} 10... cxd4 {[%clk 0:02:04.4]} 11. cxd4 {[%clk
0:02:54.9]} 11... Ne4 {[%clk 0:02:00.2]} 12. Bd3 {[%clk 0:02:52.5]} 12... Nd6
{[%clk 0:01:57.8]} 13. e4 {[%clk 0:02:47.6]} 13... e5 {[%clk 0:01:54.3]} 14. d5
{[%clk 0:02:36.2]} 14... Ne7 {[%clk 0:01:50.5]} 15. Bb2 {[%clk 0:02:34]} 15...
Ng6 {[%clk 0:01:49.4]} 16. Kh1 {[%clk 0:02:29.5]} 16... f5 {[%clk 0:01:49.3]}
17. exf5 {[%clk 0:02:22.3]} 17... Bxf5 {[%clk 0:01:50.2]} 18. Ng3 {[%clk
0:02:18.5]} 18... Bd7 {[%clk 0:01:43.4]} 19. Bxg6 {[%clk 0:02:14.6]} 19... hxg6
{[%clk 0:01:44.3]} 20. Bxe5 {[%clk 0:02:14.8]} 20... Nf5 {[%clk 0:01:39.6]} 21.
Qd2 {[%clk 0:01:56.4]} 21... Bb5 {[%clk 0:01:27]} 22. Rfe1 {[%clk 0:01:54.2]}
22... Qh4 {[%clk 0:01:24.5]} 23. Rab1 {[%clk 0:01:40.5]} 23... Ba6 {[%clk
0:01:22.5]} 24. Rb4 {[%clk 0:01:37.2]} 24... Rad8 {[%clk 0:01:20.6]} 25. Rxh4
{[%clk 0:01:36.5]} 1-0

[Event "Early-Titled-Tuesday-Blitz-January-16-2024"]
[Site "Chess.com"]
[Date "2024.01.16"]
[Round "8"]
[White "Arimin1329"]
[Black "margarita_2703"]
[Result "1-0"]
[WhiteElo "2416"]
[BlackElo "2280"]
[TimeControl "180+1"]
[EndTime "9:29:58 PST"]
[Termination "Arimin1329 won by checkmate"]

1. Nf3 {[%clk 0:02:57.1]} 1... d5 {[%clk 0:02:49.3]} 2. g3 {[%clk 0:02:56.2]}
2... Bg4 {[%clk 0:02:37.4]} 3. Bg2 {[%clk 0:02:57.1]} 3... Nd7 {[%clk
0:02:32.6]} 4. O-O {[%clk 0:02:56.1]} 4... e5 {[%clk 0:02:21.2]} 5. d3 {[%clk
0:02:55.5]} 5... c6 {[%clk 0:02:16.1]} 6. e4 {[%clk 0:02:53.5]} 6... Ngf6 {[%clk
0:02:14.7]} 7. Bg5 {[%clk 0:02:52.4]} 7... h6 {[%clk 0:02:14.1]} 8. Bxf6 {[%clk
0:02:49.4]} 8... Qxf6 {[%clk 0:02:15]} 9. Re1 {[%clk 0:02:47.8]} 9... Bd6 {[%clk
0:02:12.7]} 10. d4 {[%clk 0:02:43.4]} 10... O-O {[%clk 0:02:11.1]} 11. exd5
{[%clk 0:02:39.5]} 11... cxd5 {[%clk 0:02:08.5]} 12. dxe5 {[%clk 0:02:38.3]}
12... Nxe5 {[%clk 0:02:08.7]} 13. Nbd2 {[%clk 0:02:31.2]} 13... Rfe8 {[%clk
0:02:06.1]} 14. Re3 {[%clk 0:02:22.4]} 14... d4 {[%clk 0:02:03.7]} 15. Rb3
{[%clk 0:02:20.3]} 15... b6 {[%clk 0:01:59.1]} 16. h3 {[%clk 0:02:16.8]} 16...
Nxf3+ {[%clk 0:01:58.7]} 17. Nxf3 {[%clk 0:02:15]} 17... Bxf3 {[%clk 0:01:58.2]}
18. Rxf3 {[%clk 0:02:11.3]} 18... Qe5 {[%clk 0:01:58]} 19. Rf4 {[%clk
0:02:08.2]} 19... Rac8 {[%clk 0:01:52.3]} 20. Rxd4 {[%clk 0:02:07.5]} 20... Bc5
{[%clk 0:01:52.6]} 21. Rd7 {[%clk 0:02:03.9]} 21... Qxg3 {[%clk 0:01:49.4]} 22.
Qf3 {[%clk 0:01:53.4]} 22... Qg6 {[%clk 0:01:43.6]} 23. Rad1 {[%clk 0:01:34.9]}
23... Re5 {[%clk 0:01:33.3]} 24. Qb7 {[%clk 0:01:27.5]} 24... Rce8 {[%clk
0:01:31.2]} 25. Rd8 {[%clk 0:01:19.6]} 25... Rxd8 {[%clk 0:01:23.7]} 26. Rxd8+
{[%clk 0:01:20.5]} 26... Kh7 {[%clk 0:01:24.2]} 27. Qb8 {[%clk 0:01:19.4]} 27...
Re1+ {[%clk 0:01:16.5]} 28. Kh2 {[%clk 0:01:19.7]} 28... Bxf2 {[%clk 0:01:11.9]}
29. Rh8# {[%clk 0:01:18.2]} 1-0

[Event "Early-Titled-Tuesday-Blitz-January-16-2024"]
[Site "Chess.com"]
[Date "2024.01.16"]
[Round "8"]
[White "hakanazeri2"]
[Black "carokannlover213"]
[Result "1-0"]
[WhiteElo "2563"]
[BlackElo "2760"]
[TimeControl "180+1"]
[EndTime "9:30:02 PST"]
[Termination "hakanazeri2 won by resignation"]

1. Nf3 {[%clk 0:02:57.1]} 1... d5 {[%clk 0:02:58.9]} 2. d4 {[%clk 0:02:57.3]}
2... Bf5 {[%clk 0:02:54.6]} 3. c4 {[%clk 0:02:57.1]} 3... c6 {[%clk 0:02:53.9]}
4. Nc3 {[%clk 0:02:54]} 4... Nf6 {[%clk 0:02:54]} 5. Qb3 {[%clk 0:02:49.5]} 5...
Qb6 {[%clk 0:02:52]} 6. c5 {[%clk 0:02:41.5]} 6... Qc7 {[%clk 0:02:34]} 7. Bf4
{[%clk 0:02:31.8]} 7... Qc8 {[%clk 0:02:33.6]} 8. e3 {[%clk 0:02:24.2]} 8... Nh5
{[%clk 0:02:29.3]} 9. Bg3 {[%clk 0:02:15.3]} 9... Nd7 {[%clk 0:02:27.3]} 10. Be2
{[%clk 0:02:10.9]} 10... Ndf6 {[%clk 0:02:09.9]} 11. Ne5 {[%clk 0:02:04.6]}
11... Nxg3 {[%clk 0:02:05.1]} 12. hxg3 {[%clk 0:02:03.1]} 12... Ng4 {[%clk
0:02:05.2]} 13. Nxg4 {[%clk 0:01:58.9]} 13... Bxg4 {[%clk 0:02:04.2]} 14. Bxg4
{[%clk 0:01:58.8]} 14... Qxg4 {[%clk 0:02:03]} 15. Qxb7 {[%clk 0:01:57.5]} 15...
Rc8 {[%clk 0:01:50.6]} 16. Qxa7 {[%clk 0:01:49.4]} 16... e5 {[%clk 0:01:47.7]}
17. dxe5 {[%clk 0:01:35.5]} 17... Qb4 {[%clk 0:01:44.1]} 18. Qa6 {[%clk
0:01:32.4]} 18... Kd7 {[%clk 0:01:37.8]} 19. O-O {[%clk 0:01:28.9]} 19... Bxc5
{[%clk 0:01:33.6]} 20. Na4 {[%clk 0:01:24.3]} 20... Ra8 {[%clk 0:01:02.4]} 21.
Nxc5+ {[%clk 0:01:23.3]} 21... Kc7 {[%clk 0:01:02.3]} 22. Rac1 {[%clk
0:01:16.5]} 1-0